fUST/lending_fUST_20250827
["ID","MTS","AMOUNT","RATE_DAILY","PERIOD"]
[381607489,1756295493017,-480.0,0.00022739,2]
[381607490,1756295493027,-480.0,0.00022739,2]
[381607491,1756295493037,-1143.26,0.00022739,2]
[381607492,1756295493047,-480.0,0.00022739,2]
[381607493,1756295493058,-698.99,0.00022739,2]
[381607494,1756295493067,-606.55,0.00022739,2]
[381607495,1756295493078,-480.0,0.00022739,2]
[381607496,1756295493088,-755.57,0.00022739,2]
[381607497,1756295493263,-740.17,0.00022739,2]
[381607498,1756295493274,-480.0,0.00022739,2]
[381607499,1756295493284,-480.0,0.00022739,2]
[381607500,1756295493294,-839.06,0.00022739,2]
[381607501,1756295493304,-480.0,0.00022739,2]
[381607502,1756295493314,-558.04,0.00022739,2]
[381607503,1756295493324,-480.0,0.00022739,2]
[381607504,1756295493333,-260.29226006,0.00022739,2]
[381607505,1756295493343,-480.0,0.00022739,2]
[381607506,1756295493354,-480.0,0.00022739,2]
[381607507,1756295493363,-576.43,0.00022739,2]
[381607508,1756295493372,-480.0,0.00022739,2]
[381607509,1756295493382,-527.26,0.00022739,2]
[381607510,1756295493391,-564.31,0.00022739,2]
[381607511,1756295493401,-525.48,0.00022739,2]
[381607512,1756295493410,-480.0,0.00022739,2]
[381607513,1756295493420,-480.0,0.00022739,2]
[381607514,1756295493430,-480.0,0.00022739,2]
[381607515,1756295493440,-480.0,0.00022739,2]
[381607516,1756295493450,-706.22,0.00022739,2]
[381607517,1756295493459,-480.0,0.00022739,2]
[381607518,1756295493470,-480.0,0.00022739,2]
[381607519,1756295493479,-550.82,0.00022739,2]
[381607520,1756295493489,-926.56,0.00022739,2]
[381607521,1756295493499,-924.56,0.00022739,2]
[381607522,1756295493510,-480.0,0.00022739,2]
[381607523,1756295493520,-480.0,0.00022739,2]
[381607524,1756295493530,-625.16,0.00022739,2]
[381607525,1756295493541,-480.0,0.00022739,2]
[381607526,1756295493551,-480.0,0.00022739,2]
[381607527,1756295493561,-480.0,0.00022739,2]
[381607528,1756295493571,-480.0,0.00022739,2]
[381607529,1756295493581,-480.0,0.00022739,2]
[381607530,1756295493591,-613.93,0.00022739,2]
[381607531,1756295493601,-480.0,0.00022739,2]
[381607532,1756295493611,-480.0,0.00022739,2]
[381607533,1756295493621,-480.0,0.00022739,2]
[381607534,1756295493631,-480.0,0.00022739,2]
[381607535,1756295493641,-480.0,0.00022739,2]
[381607536,1756295493651,-732.55,0.00022739,2]
[381607537,1756295493661,-480.0,0.00022739,2]
[381607538,1756295493671,-480.0,0.00022739,2]
[381607539,1756295493681,-480.0,0.00022739,2]
[381607540,1756295493694,-480.0,0.00022739,2]
[381607541,1756295493704,-480.0,0.00022739,2]
[381607542,1756295493715,-480.0,0.00022739,2]
[381607543,1756295493726,-502.03,0.00022739,2]
[381607544,1756295493740,-9670.89,0.00022739,2]
[381607545,1756295493751,-513.59,0.00022739,2]
[381607546,1756295493761,-480.0,0.00022739,2]
[381607547,1756295493772,-524.29,0.00022739,2]
[381607548,1756295493784,-1383.3,0.00022739,2]
[381607549,1756295493795,-480.0,0.00022739,2]
[381607550,1756295493805,-480.0,0.00022739,2]
[381607551,1756295493815,-500.0,0.00022739,2]
[381607552,1756295493826,-480.0,0.00022739,2]
[381607553,1756295493836,-480.0,0.00022739,2]
[381607554,1756295493847,-655.08,0.00022739,2]
[381607555,1756295493859,-480.0,0.00022739,2]
[381607556,1756295493868,-482.5590469,0.00022739,2]
[381607557,1756295493878,-480.0,0.00022739,2]
[381607558,1756295493887,-480.0,0.00022739,2]
[381607559,1756295493898,-480.0,0.00022739,2]
[381607560,1756295493907,-480.0,0.00022739,2]
[381607561,1756295493918,-480.0,0.00022739,2]
[381607562,1756295493929,-665.82,0.00022739,2]
[381607563,1756295493940,-480.0,0.00022739,2]
[381607564,1756295493950,-480.0,0.00022739,2]
[381607565,1756295493960,-480.0,0.00022739,2]
[381607566,1756295493970,-480.0,0.00022739,2]
[381607567,1756295493981,-480.0,0.00022739,2]
[381607568,1756295493990,-480.0,0.00022739,2]
[381607569,1756295494000,-480.0,0.00022739,2]
[381607570,1756295494010,-480.0,0.00022739,2]
[381607571,1756295494020,-480.0,0.00022739,2]
[381607572,1756295494029,-480.0,0.00022739,2]
[381607573,1756295494040,-737.63,0.00022739,2]
[381607574,1756295494049,-480.0,0.00022739,2]
[381607575,1756295494059,-480.0,0.00022739,2]
[381607576,1756295494068,-1275.55,0.00022739,2]
[381607577,1756295494078,-941.67,0.00022739,2]
[381607578,1756295494088,-480.0,0.00022739,2]
[381607579,1756295494097,-2005.67,0.00022739,2]
[381607580,1756295494107,-527.84,0.00022739,2]
[381607581,1756295494119,-1377.54,0.00022739,2]
[381607582,1756295494129,-480.0,0.00022739,2]
[381607583,1756295494138,-480.0,0.00022739,2]
[381607584,1756295494148,-544.18,0.00022739,2]
[381607585,1756295494158,-605.81,0.00022739,2]
[381607586,1756295494168,-480.0,0.00022739,2]
[381607587,1756295494177,-480.0,0.00022739,2]
[381607588,1756295494189,-486.23,0.00022739,2]
[381607589,1756295494199,-480.0,0.00022739,2]
[381607590,1756295494209,-480.0,0.00022739,2]
[381607591,1756295494220,-572.5,0.00022739,2]
[381607592,1756295494230,-1511.66,0.00022739,2]
[381607593,1756295494240,-1734.3,0.00022739,2]
[381607594,1756295494250,-3755.94,0.00022739,2]
[381607595,1756295494260,-480.0,0.00022739,2]
[381607596,1756295494269,-831.34,0.00022739,2]
[381607597,1756295494279,-480.0,0.00022739,2]
[381607598,1756295494288,-480.0,0.00022739,2]
[381607599,1756295494298,-707.25,0.00022739,2]
[381607600,1756295494309,-480.0,0.00022739,2]
[381607601,1756295494318,-2885.3,0.00022739,2]
[381607602,1756295494328,-480.0,0.00022739,2]
[381607603,1756295494339,-480.0,0.00022739,2]
[381607604,1756295494349,-667.09,0.00022739,2]
[381607605,1756295494360,-480.0,0.00022739,2]
[381607606,1756295494370,-480.0,0.00022739,2]
[381607607,1756295494379,-480.0,0.00022739,2]
[381607608,1756295494389,-1275.32,0.00022739,2]
[381607609,1756295494398,-480.0,0.00022739,2]
[381607610,1756295494408,-562.26,0.00022739,2]
[381607611,1756295494417,-489.14,0.00022739,2]
[381607612,1756295494427,-3844.16,0.00022739,2]
[381607613,1756295494437,-480.0,0.00022739,2]
[381607614,1756295494446,-1682.7,0.00022739,2]
[381607615,1756295494455,-807.73,0.00022739,2]
[381607616,1756295494464,-1992.53,0.00022739,2]
[381607617,1756295494474,-480.0,0.00022739,2]
[381607618,1756295494483,-480.0,0.00022739,2]
[381607619,1756295494492,-1281.38,0.00022739,2]
[381607620,1756295494502,-480.0,0.00022739,2]
[381607621,1756295494511,-480.0,0.00022739,2]
[381607622,1756295494520,-480.0,0.00022739,2]
[381607623,1756295494529,-833.25,0.00022739,2]
[381607624,1756295494538,-480.0,0.00022739,2]
[381607625,1756295494548,-480.0,0.00022739,2]
[381607626,1756295494557,-480.0,0.00022739,2]
[381607627,1756295494567,-480.0,0.00022739,2]
[381607628,1756295494577,-480.0,0.00022739,2]
[381607629,1756295494586,-480.0,0.00022739,2]
[381607630,1756295494596,-480.0,0.00022739,2]
[381607631,1756295494606,-480.0,0.00022739,2]
[381607632,1756295494615,-480.0,0.00022739,2]
[381607633,1756295494625,-480.0,0.00022739,2]
[381607634,1756295494634,-480.0,0.00022739,2]
[381607635,1756295494644,-480.0,0.00022739,2]
[381607636,1756295494654,-480.0,0.00022739,2]
[381607637,1756295494664,-480.0,0.00022739,2]
[381607638,1756295494676,-824.64,0.00022739,2]
[381607639,1756295494686,-1267.55,0.00022739,2]
[381607640,1756295494695,-934.3,0.00022739,2]
[381607641,1756295494705,-1138.38,0.00022739,2]
[381607642,1756295494715,-495.31,0.00022739,2]
[381607643,1756295494725,-480.0,0.00022739,2]
[381607644,1756295494734,-480.0,0.00022739,2]
[381607645,1756295494744,-480.0,0.00022739,2]
[381607646,1756295494754,-480.0,0.00022739,2]
[381607647,1756295494764,-776.73,0.00022739,2]
[381607648,1756295494779,-480.0,0.00022739,2]
[381607649,1756295494788,-480.0,0.00022739,2]
[381607650,1756295494798,-480.0,0.00022739,2]
[381607651,1756295494808,-480.0,0.00022739,2]
[381607652,1756295494817,-557.28,0.00022739,2]
[381607653,1756295494827,-535.56,0.00022739,2]
[381607654,1756295494836,-480.0,0.00022739,2]
[381607655,1756295494848,-480.0,0.00022739,2]
[381607656,1756295494862,-639.28,0.00022739,2]
[381607657,1756295494873,-480.0,0.00022739,2]
[381607658,1756295494882,-480.0,0.00022739,2]
[381607659,1756295494894,-480.0,0.00022739,2]
[381607660,1756295494903,-1717.2,0.00022739,2]
[381607661,1756295494912,-480.0,0.00022739,2]
[381607662,1756295494922,-2626.17,0.00022739,2]
[381607663,1756295494932,-484.63,0.00022739,2]
[381607664,1756295494942,-480.0,0.00022739,2]
[381607665,1756295494952,-932.54,0.00022739,2]
[381607666,1756295494961,-717.77,0.00022739,2]
[381607667,1756295494971,-1227.94,0.00022739,2]
[381607668,1756295494982,-607.71,0.00022739,2]
[381607669,1756295494991,-480.0,0.00022739,2]
[381607670,1756295495000,-5360.08,0.00022739,2]
[381607671,1756295495010,-636.41,0.00022739,2]
[381607672,1756295495020,-7837.73,0.00022739,2]
[381607673,1756295495030,-480.0,0.00022739,2]
[381607674,1756295495041,-525.03,0.00022739,2]
[381607675,1756295495051,-784.27,0.00022739,2]
[381607676,1756295495061,-974.32,0.00022739,2]
[381607677,1756295495071,-480.0,0.00022739,2]
[381607678,1756295495082,-480.0,0.00022739,2]
[381607679,1756295495092,-260.56026011,0.00022739,2]
[381607680,1756295495102,-480.0,0.00022739,2]
[381607681,1756295495114,-2604.37,0.00022739,2]
[381607682,1756295495124,-480.0,0.00022739,2]
[381607683,1756295495134,-480.0,0.00022739,2]
[381607684,1756295495143,-480.0,0.00022739,2]
[381607685,1756295495153,-480.0,0.00022739,2]
[381607686,1756295495162,-480.0,0.00022739,2]
[381607687,1756295495175,-486.44,0.00022739,2]
[381607688,1756295495185,-480.0,0.00022739,2]
[381607689,1756295495194,-480.0,0.00022739,2]
[381607690,1756295495204,-1424.05,0.00022739,2]
[381607691,1756295495215,-480.0,0.00022739,2]
[381607692,1756295495225,-480.0,0.00022739,2]
[381607693,1756295495234,-850.03,0.00022739,2]
[381607694,1756295495244,-480.0,0.00022739,2]
[381607695,1756295495254,-480.0,0.00022739,2]
[381607696,1756295495263,-480.0,0.00022739,2]
[381607697,1756295495273,-480.0,0.00022739,2]
[381607698,1756295495282,-480.0,0.00022739,2]
[381607699,1756295495292,-2434.53,0.00022739,2]
[381607700,1756295495302,-512.47,0.00022739,2]
[381607701,1756295495311,-480.0,0.00022739,2]
[381607702,1756295495321,-1080.79,0.00022739,2]
[381607703,1756295495331,-753.46,0.00022739,2]
[381607704,1756295495340,-527.3,0.00022739,2]
[381607705,1756295495350,-480.0,0.00022739,2]
[381607706,1756295495360,-480.0,0.00022739,2]
[381607707,1756295495370,-1150.08,0.00022739,2]
[381607708,1756295495380,-480.0,0.00022739,2]
[381607709,1756295495390,-480.0,0.00022739,2]
[381607710,1756295495399,-480.0,0.00022739,2]
[381607711,1756295495410,-480.0,0.00022739,2]
[381607712,1756295495421,-716.6,0.00022739,2]
[381607713,1756295495430,-480.0,0.00022739,2]
[381607714,1756295495441,-480.0,0.00022739,2]
[381607715,1756295495450,-480.0,0.00022739,2]
[381607716,1756295495460,-480.0,0.00022739,2]
[381607717,1756295495471,-480.0,0.00022739,2]
[381607718,1756295495480,-480.0,0.00022739,2]
[381607719,1756295495490,-480.0,0.00022739,2]
[381607720,1756295495500,-480.0,0.00022739,2]
[381607721,1756295495509,-359.62042945,0.00022739,2]
[381607722,1756295495518,-799.46,0.00022739,2]
[381607723,1756295495527,-528.16,0.00022739,2]
[381607724,1756295495538,-480.0,0.00022739,2]
[381607725,1756295495548,-5059.84,0.00022739,2]
[381607726,1756295495557,-480.0,0.00022739,2]
[381607727,1756295495567,-518.25,0.00022739,2]
[381607728,1756295495577,-582.84,0.00022739,2]
[381607729,1756295495586,-556.45,0.00022739,2]
[381607730,1756295495596,-1272.66,0.00022739,2]
[381607731,1756295495606,-684.68,0.00022739,2]
[381607732,1756295495616,-480.0,0.00022739,2]
[381607733,1756295495627,-480.0,0.00022739,2]
[381607734,1756295495637,-2968.96,0.00022739,2]
[381607735,1756295495700,-1499.0,0.00022767,2]
[381607736,1756295495709,-285.0,0.00022771,2]
[381607737,1756295495719,-216.14835892,0.00022808,2]
[381607738,1756295495728,-160.0,0.00022808,2]
[381607739,1756295495737,-160.0,0.00022808,2]
[381607740,1756295495747,-417.15472785,0.00022808,2]
[381607741,1756295495756,-160.0,0.00022808,2]
[381607742,1756295495765,-160.0,0.00022808,2]
[381607743,1756295495774,-232.59867797,0.00022808,2]
[381607744,1756295495784,-425.44119842,0.00022808,2]
[381607745,1756295495793,-217.23771399,0.00022808,2]
[381607746,1756295495803,-845.298898,0.00022808,2]
[381607747,1756295495812,-12707.75045307,0.00022815,2]
[381607748,1756295495822,-160.0,0.00022818,2]
[381607749,1756295495831,-529.56067766,0.00022818,2]
[381607750,1756295495840,-160.0,0.00022835,2]
[381607751,1756295495850,-160.0,0.00022835,2]
[381607752,1756295495861,-160.0,0.00022835,2]
[381607753,1756295495870,-160.0,0.00022835,2]
[381607754,1756295495880,-176.256,0.00022845,2]
[381607755,1756295495889,-931.311,0.00022845,2]
[381607756,1756295495898,-285.0,0.00022855,2]
[381607757,1756295495907,-326.0,0.00022931,3]
[381607758,1756295495917,-246.81864004,0.00022992,2]
[381607759,1756295495927,-973.0,0.00022992,2]
[381607760,1756295495936,-276.37048483,0.00022992,2]
[381607761,1756295495946,-151.0,0.00022992,2]
[381607762,1756295495956,-500.0,0.00022992,2]
[381607763,1756295495966,-2946.26059488,0.00023,2]
[381607764,1756295495975,-1524.90848273,0.00023,2]
[381607765,1756295495985,-160.0,0.00023,2]
[381607766,1756295495994,-462.54880423,0.0002301,2]
[381607767,1756295496003,-728.82,0.00023013,2]
[381607768,1756295496012,-1786.79,0.00023013,2]
[381607769,1756295496022,-480.0,0.00023013,2]
[381607770,1756295496031,-480.0,0.00023013,2]
[381607771,1756295496040,-480.0,0.00023013,2]
[381607772,1756295496050,-480.0,0.00023013,2]
[381607773,1756295496060,-480.0,0.00023013,2]
[381607774,1756295496070,-2132.63,0.00023013,2]
[381607775,1756295496079,-567.43,0.00023013,2]
[381607776,1756295496088,-480.0,0.00023013,2]
[381607777,1756295496097,-480.0,0.00023013,2]
[381607778,1756295496106,-480.0,0.00023013,2]
[381607779,1756295496115,-480.0,0.00023013,2]
[381607780,1756295496124,-599.6,0.00023013,2]
[381607781,1756295496133,-480.0,0.00023013,2]
[381607782,1756295496143,-480.0,0.00023013,2]
[381607783,1756295496156,-480.0,0.00023013,2]
[381607784,1756295496165,-388.23883954,0.00023013,2]
[381607785,1756295496174,-480.0,0.00023013,2]
[381607786,1756295496183,-555.01,0.00023013,2]
[381607787,1756295496193,-480.0,0.00023013,2]
[381607788,1756295496202,-480.0,0.00023013,2]
[381607789,1756295496211,-480.0,0.00023013,2]
[381607790,1756295496221,-480.0,0.00023013,2]
[381607791,1756295496230,-480.0,0.00023013,2]
[381607792,1756295496239,-480.0,0.00023013,2]
[381607793,1756295496248,-480.0,0.00023013,2]
[381607794,1756295496257,-472.72840949,0.00023013,2]
[381607795,1756295496266,-608.26,0.00023013,2]
[381607796,1756295496276,-480.0,0.00023013,2]
[381607797,1756295496288,-788.63,0.00023013,2]
[381607798,1756295496297,-733.12,0.00023013,2]
[381607799,1756295496307,-491.85,0.00023013,2]
[381607800,1756295496316,-523.6,0.00023013,2]
[381607801,1756295496325,-4246.52,0.00023013,2]
[381607802,1756295496334,-598.52,0.00023013,2]
[381607803,1756295496343,-197.9,0.00023013,2]
[381607804,1756295496353,-972.86,0.00023013,2]
[381607805,1756295496362,-568.62,0.00023013,2]
[381607806,1756295496372,-480.0,0.00023013,2]
[381607807,1756295496381,-480.0,0.00023013,2]
[381607808,1756295496390,-480.0,0.00023013,2]
[381607809,1756295496400,-480.0,0.00023013,2]
[381607810,1756295496412,-480.0,0.00023013,2]
[381607811,1756295496421,-480.0,0.00023013,2]
[381607812,1756295496430,-573.08,0.00023013,2]
[381607813,1756295496439,-543.52,0.00023013,2]
[381607814,1756295496448,-506.41,0.00023013,2]
[381607815,1756295496458,-480.0,0.00023013,2]
[381607816,1756295496468,-556.45,0.00023013,2]
[381607817,1756295496478,-480.0,0.00023013,2]
[381607818,1756295496488,-705.68,0.00023013,2]
[381607819,1756295496498,-480.0,0.00023013,2]
[381607820,1756295496508,-480.0,0.00023013,2]
[381607821,1756295496518,-480.0,0.00023013,2]
[381607822,1756295496528,-743.34,0.00023013,2]
[381607823,1756295496538,-480.0,0.00023013,2]
[381607824,1756295496547,-614.77,0.00023013,2]
[381607825,1756295496556,-480.0,0.00023013,2]
[381607826,1756295496566,-480.0,0.00023013,2]
[381607827,1756295496576,-480.0,0.00023013,2]
[381607828,1756295496585,-480.0,0.00023013,2]
[381607829,1756295496595,-480.0,0.00023013,2]
[381607830,1756295496604,-480.0,0.00023013,2]
[381607831,1756295496614,-1174.5,0.00023013,2]
[381607832,1756295496624,-480.0,0.00023013,2]
[381607833,1756295496633,-480.0,0.00023013,2]
[381607834,1756295496643,-480.0,0.00023013,2]
[381607835,1756295496652,-480.0,0.00023013,2]
[381607836,1756295496661,-480.0,0.00023013,2]
[381607837,1756295496671,-824.65,0.00023013,2]
[381607838,1756295496680,-480.0,0.00023013,2]
[381607839,1756295496689,-480.0,0.00023013,2]
[381607840,1756295496698,-480.0,0.00023013,2]
[381607841,1756295496707,-897.27,0.00023013,2]
[381607842,1756295496717,-771.07,0.00023013,2]
[381607843,1756295496727,-480.0,0.00023013,2]
[381607844,1756295496736,-480.0,0.00023013,2]
[381607845,1756295496745,-480.0,0.00023013,2]
[381607846,1756295496754,-504.69,0.00023013,2]
[381607847,1756295496763,-1094.25,0.00023013,2]
[381607848,1756295496773,-480.0,0.00023013,2]
[381607849,1756295496783,-480.0,0.00023013,2]
[381607850,1756295496793,-480.0,0.00023013,2]
[381607851,1756295496802,-480.0,0.00023013,2]
[381607852,1756295496811,-1176.51,0.00023013,2]
[381607853,1756295496820,-833.03,0.00023013,2]
[381607854,1756295496830,-480.0,0.00023013,2]
[381607855,1756295496840,-483.29,0.00023013,2]
[381607856,1756295496852,-480.0,0.00023013,2]
[381607857,1756295496864,-306.94118864,0.00023013,2]
[381607858,1756295496873,-650.46,0.00023013,2]
[381607859,1756295496883,-536.02,0.00023013,2]
[381607860,1756295496892,-480.0,0.00023013,2]
[381607861,1756295496902,-2316.32,0.00023013,2]
[381607862,1756295496911,-480.0,0.00023013,2]
[381607863,1756295496921,-480.0,0.00023013,2]
[381607864,1756295496932,-633.07,0.00023013,2]
[381607865,1756295496941,-480.0,0.00023013,2]
[381607866,1756295496950,-480.0,0.00023013,2]
[381607867,1756295496960,-480.0,0.00023013,2]
[381607868,1756295496969,-480.0,0.00023013,2]
[381607869,1756295496978,-617.59,0.00023013,2]
[381607870,1756295496988,-692.43,0.00023013,2]
[381607871,1756295496997,-480.0,0.00023013,2]
[381607872,1756295497007,-518.17,0.00023013,2]
[381607873,1756295497016,-604.0,0.00023013,2]
[381607874,1756295497025,-500.09,0.00023013,2]
[381607875,1756295497035,-480.0,0.00023013,2]
[381607876,1756295497044,-480.0,0.00023013,2]
[381607877,1756295497054,-480.0,0.00023013,2]
[381607878,1756295497063,-480.0,0.00023013,2]
[381607879,1756295497073,-480.0,0.00023013,2]
[381607880,1756295497083,-480.0,0.00023013,2]
[381607881,1756295497093,-603.45,0.00023013,2]
[381607882,1756295497103,-480.0,0.00023013,2]
[381607883,1756295497114,-480.0,0.00023013,2]
[381607884,1756295497123,-480.0,0.00023013,2]
[381607885,1756295497133,-480.0,0.00023013,2]
[381607886,1756295497143,-525.14,0.00023013,2]
[381607887,1756295497152,-480.0,0.00023013,2]
[381607888,1756295497162,-546.45,0.00023013,2]
[381607889,1756295497171,-480.0,0.00023013,2]
[381607890,1756295497181,-480.0,0.00023013,2]
[381607891,1756295497191,-495.46,0.00023013,2]
[381607892,1756295497200,-494.23,0.00023013,2]
[381607893,1756295497210,-480.0,0.00023013,2]
[381607894,1756295497220,-480.0,0.00023013,2]
[381607895,1756295497230,-752.07,0.00023013,2]
[381607896,1756295497239,-522.4,0.00023013,2]
[381607897,1756295497249,-480.0,0.00023013,2]
[381607898,1756295497259,-480.0,0.00023013,2]
[381607899,1756295497268,-1143.26,0.00023013,2]
[381607900,1756295497278,-418.97263939,0.00023013,2]
[381607901,1756295497288,-698.99,0.00023013,2]
[381607902,1756295497297,-606.55,0.00023013,2]
[381607903,1756295497307,-480.0,0.00023013,2]
[381607904,1756295497317,-755.57,0.00023013,2]
[381607905,1756295497327,-740.17,0.00023013,2]
[381607906,1756295497337,-480.0,0.00023013,2]
[381607907,1756295497346,-839.06,0.00023013,2]
[381607908,1756295497356,-525.15802201,0.00023013,2]
[381607909,1756295497366,-558.04,0.00023013,2]
[381607910,1756295497375,-480.0,0.00023013,2]
[381607911,1756295497385,-480.0,0.00023013,2]
[381607912,1756295497394,-480.0,0.00023013,2]
[381607913,1756295497404,-576.43,0.00023013,2]
[381607914,1756295497413,-480.0,0.00023013,2]
[381607915,1756295497423,-527.26,0.00023013,2]
[381607916,1756295497433,-564.31,0.00023013,2]
[381607917,1756295497443,-525.48,0.00023013,2]
[381607918,1756295497453,-480.0,0.00023013,2]
[381607919,1756295497463,-480.0,0.00023013,2]
[381607920,1756295497473,-480.0,0.00023013,2]
[381607921,1756295497483,-480.0,0.00023013,2]
[381607922,1756295497493,-706.22,0.00023013,2]
[381607923,1756295497503,-480.0,0.00023013,2]
[381607924,1756295497513,-480.0,0.00023013,2]
[381607925,1756295497523,-550.82,0.00023013,2]
[381607926,1756295497534,-926.56,0.00023013,2]
[381607927,1756295497543,-924.56,0.00023013,2]
[381607928,1756295497553,-480.0,0.00023013,2]
[381607929,1756295497563,-480.0,0.00023013,2]
[381607930,1756295497572,-625.16,0.00023013,2]
[381607931,1756295497582,-480.0,0.00023013,2]
[381607932,1756295497591,-480.0,0.00023013,2]
[381607933,1756295497601,-251.28383491,0.00023013,2]
[381607934,1756295497611,-480.0,0.00023013,2]
[381607935,1756295497620,-480.0,0.00023013,2]
[381607936,1756295497630,-613.93,0.00023013,2]
[381607937,1756295497640,-480.0,0.00023013,2]
[381607938,1756295497649,-480.0,0.00023013,2]
[381607939,1756295497659,-480.0,0.00023013,2]
[381607940,1756295497668,-480.0,0.00023013,2]
[381607941,1756295497678,-480.0,0.00023013,2]
[381607942,1756295497688,-732.55,0.00023013,2]
[381607943,1756295497697,-480.0,0.00023013,2]
[381607944,1756295497706,-480.0,0.00023013,2]
[381607945,1756295497715,-389.38867201,0.00023013,2]
[381607946,1756295497725,-480.0,0.00023013,2]
[381607947,1756295497735,-480.0,0.00023013,2]
[381607948,1756295497744,-480.0,0.00023013,2]
[381607949,1756295497754,-502.03,0.00023013,2]
[381607950,1756295497763,-9670.89,0.00023013,2]
[381607951,1756295497773,-513.59,0.00023013,2]
[381607952,1756295497783,-480.0,0.00023013,2]
[381607953,1756295497792,-524.29,0.00023013,2]
[381607954,1756295497802,-1383.3,0.00023013,2]
[381607955,1756295497812,-480.0,0.00023013,2]
[381607956,1756295497822,-480.0,0.00023013,2]
[381607957,1756295497831,-500.0,0.00023013,2]
[381607958,1756295497841,-480.0,0.00023013,2]
[381607959,1756295497853,-480.0,0.00023013,2]
[381607960,1756295497863,-655.08,0.00023013,2]
[381607961,1756295497873,-480.0,0.00023013,2]
[381607962,1756295497883,-480.0,0.00023013,2]
[381607963,1756295497892,-480.0,0.00023013,2]
[381607964,1756295497903,-480.0,0.00023013,2]
[381607965,1756295497912,-532.88,0.00023013,2]
[381607966,1756295497922,-480.0,0.00023013,2]
[381607967,1756295497934,-480.0,0.00023013,2]
[381607968,1756295497944,-354.2,0.00023013,2]
[381607969,1756295497953,-665.82,0.00023013,2]
[381607970,1756295497963,-480.0,0.00023013,2]
[381607971,1756295497972,-480.0,0.00023013,2]
[381607972,1756295497982,-480.0,0.00023013,2]
[381607973,1756295497993,-480.0,0.00023013,2]
[381607974,1756295498002,-480.0,0.00023013,2]
[381607975,1756295498012,-582.05,0.00023013,2]
[381607976,1756295498021,-480.0,0.00023013,2]
[381607977,1756295498031,-480.0,0.00023013,2]
[381607978,1756295498041,-737.63,0.00023013,2]
[381607979,1756295498050,-480.0,0.00023013,2]
[381607980,1756295498060,-480.0,0.00023013,2]
[381607981,1756295498070,-1275.55,0.00023013,2]
[381607982,1756295498080,-480.0,0.00023013,2]
[381607983,1756295498090,-941.67,0.00023013,2]
[381607984,1756295498099,-2005.67,0.00023013,2]
[381607985,1756295498110,-527.84,0.00023013,2]
[381607986,1756295498121,-1377.54,0.00023013,2]
[381607987,1756295498132,-480.0,0.00023013,2]
[381607988,1756295498141,-480.0,0.00023013,2]